bitfinex/quotes_SOLUSD_20250518
["timestamp","ask_amount","ask_price","bid_price","bid_amount"]
[1747607567177,20.25145055,168.74,168.64,1.1854548]
[1747607567375,20.25145055,168.74,168.65,5.92943966]
[1747607567575,20.25145055,168.74,168.65,20.75303882]
[1747607567776,20.77075055,168.76,168.65,20.75303882]
[1747607567974,10.21801263,168.77,168.68,26.0]
[1747607568175,20.25145055,168.76,168.68,26.0]
[1747607568370,20.25145055,168.75,168.68,26.0]
[1747607568875,20.77075055,168.75,168.68,26.0]
[1747607569384,26.69691045,168.75,168.68,31.9282856]
[1747607569589,20.25145055,168.73,168.66,31.92904518]
[1747607569757,20.25145055,168.73,168.63,5.93014291]
[1747607569758,20.25145055,168.71,168.63,5.93014291]
[1747607569958,20.25145055,168.7,168.63,5.93014291]
[1747607570376,20.25145055,168.71,168.63,5.93014291]
[1747607570591,0.5193,168.7,168.63,5.93014291]
[1747607570880,20.25145055,168.69,168.62,5.93044538]
[1747607571303,20.25145055,168.69,168.59,14.8284372]
[1747607571304,0.5193,168.68,168.61,5.93076377]
[1747607571515,5.92859182,168.68,168.59,5.93154991]
[1747607571713,22.35185055,168.71,168.6,1.18596744]
[1747607571881,20.25145055,168.7,168.62,26.0]
[1747607572306,8.02786495,168.71,168.59,5.93154991]
[1747607572307,20.25145055,168.67,168.59,5.93154991]
[1747607572609,20.77075055,168.7,168.62,26.0]
[1747607572986,22.35185055,168.71,168.62,26.0]
[1747607573389,20.77075055,168.72,168.63,31.93014291]
[1747607574030,20.25145055,168.71,168.63,31.93014291]
[1747607574518,80.98106676,168.78,168.67,6.2155]
[1747607574814,32.78106676,168.78,168.67,6.2155]
[1747607574996,20.77075055,168.77,168.67,6.2155]
[1747607575197,0.5193,168.77,168.67,6.2155]
[1747607575514,20.77075055,168.77,168.68,20.74934786]
[1747607575699,26.69599,168.77,168.68,20.74934786]
[1747607576004,20.25145055,168.76,168.68,5.9283851]
[1747607576385,20.77075055,168.75,168.68,5.9283851]
[1747607576713,0.5193,168.75,168.68,5.9283851]
[1747607576912,0.5193,168.76,168.68,5.9283851]
[1747607577113,0.5193,168.76,168.68,20.74934786]
[1747607577317,26.69559235,168.79,168.68,20.74934786]
[1747607577809,0.5193,168.79,168.69,26.0]
[1747607578716,21.82135055,168.8,168.72,5.92697961]
[1747607578888,2.0892,168.8,168.72,5.92697961]
[1747607579084,20.77075055,168.8,168.72,20.74442863]
[1747607579408,20.77075055,168.84,168.73,1.18517893]
[1747607579602,22.36255055,168.85,168.75,26.0]
[1747607579904,20.25145055,168.84,168.75,26.0]
[1747607580315,2.1111,168.85,168.75,27.18482793]
[1747607580484,20.25145055,168.84,168.75,27.18482793]
[1747607580684,1.5918,168.85,168.76,5.92557478]
[1747607580909,20.25145055,168.83,168.76,5.92557478]
[1747607581294,0.5193,168.84,168.76,5.92557478]
[1747607581496,0.5193,168.84,168.75,31.92587948]
[1747607581700,20.25145055,168.83,168.75,31.92587948]
[1747607581883,20.25145055,168.84,168.75,31.92587948]
[1747607582086,20.77075055,168.83,168.75,31.92587948]
[1747607582708,0.5193,168.83,168.75,31.92587948]
[1747607582904,1.5918,168.85,168.75,46.74069429]
[1747607583109,8.71097127,168.86,168.76,1.18480461]
[1747607583311,2.26954311,168.86,168.76,2.68950461]
[1747607584112,2.26954311,168.86,168.75,31.92587948]
[1747607584113,20.25145055,168.83,168.75,31.92587948]
[1747607584305,0.5193,168.83,168.75,31.92587948]
[1747607584509,20.77075055,168.83,168.75,31.92587948]
[1747607584814,20.25145055,168.82,168.75,31.92587948]
[1747607585118,0.5193,168.83,168.75,31.92587948]
[1747607585299,20.77075055,168.83,168.75,31.92587948]
[1747607585502,5.92320544,168.83,168.75,31.92587948]
[1747607585698,0.5193,168.85,168.75,31.92587948]
[1747607585928,22.52099366,168.86,168.75,33.11061613]
[1747607586292,2.26954311,168.86,168.75,47.92543094]
[1747607586696,20.25145055,168.84,168.75,31.92587948]
[1747607586902,26.17456847,168.83,168.75,31.92587948]
[1747607587306,20.25145055,168.82,168.75,31.92587948]
[1747607587603,26.69386847,168.83,168.75,31.92587948]
[1747607587914,20.25145055,168.81,168.73,26.0]
[1747607588119,6.44241792,168.83,168.72,5.92665675]
[1747607588120,20.25145055,168.79,168.72,5.92665675]
[1747607588315,20.25145055,168.8,168.72,31.92665675]
[1747607588522,20.25145055,168.82,168.72,31.92665675]
[1747607588827,6.4875,168.83,168.72,46.74410577]
[1747607589074,20.25145055,168.84,168.75,26.0]
[1747607589226,2.26954311,168.86,168.76,1.18462202]
[1747607589526,2.26954311,168.86,168.77,6.097]
[1747607590097,20.25145055,168.85,168.77,6.097]
[1747607590314,20.25145055,168.85,168.75,164.4]
[1747607590524,20.25145055,168.82,168.75,26.0]
[1747607590730,20.77075055,168.81,168.72,5.92665675]
[1747607590931,26.69486089,168.81,168.72,5.92665675]
[1747607591102,20.25145055,168.8,168.72,5.92665675]
[1747607591400,20.77075055,168.79,168.71,5.92728502]
[1747607591598,0.5193,168.79,168.71,5.92728502]
[1747607591795,20.25145055,168.78,168.7,5.92763489]
[1747607592010,20.25145055,168.79,168.7,5.92763489]
[1747607592417,20.25145055,168.74,168.68,5.9283851]
[1747607592708,20.25145055,168.73,168.65,5.92943966]
[1747607592917,20.25145055,168.72,168.65,5.92943966]
[1747607593124,20.25145055,168.72,168.65,31.92943966]
[1747607593539,20.77075055,168.71,168.64,5.9297803]
[1747607593705,6.1652,168.76,168.64,5.9297803]
[1747607593909,20.25145055,168.75,168.65,1.18568264]
[1747607594209,26.93595055,168.76,168.65,1.18568264]
[1747607594529,12.60867061,168.8,168.67,26.0]
[1747607594720,20.25145055,168.77,168.67,26.0]
[1747607595436,6.6845,168.8,168.68,20.74934786]
[1747607595639,1.6412,168.82,168.71,26.0]
[1747607595930,20.77075055,168.81,168.71,26.0]
[1747607596120,20.25145055,168.8,168.71,26.0]
[1747607596321,2.1605,168.82,168.71,26.0]
[1747607596722,22.41195055,168.82,168.71,26.0]
[1747607596924,20.25145055,168.81,168.71,26.0]
[1747607597236,20.25145055,168.81,168.72,5.92697961]
[1747607597638,20.25145055,168.8,168.72,5.92697961]
[1747607597816,20.25145055,168.78,168.72,5.92697961]
[1747607598217,20.77075055,168.8,168.72,5.92697961]
[1747607598524,0.5193,168.8,168.72,5.92697961]
[1747607598913,1.6412,168.82,168.72,20.74442863]
[1747607599240,55.1428,168.85,168.74,20.74196989]
[1747607599739,61.06522225,168.85,168.75,1.18478056]
[1747607600036,20.25145055,168.83,168.75,1.18478056]
[1747607600243,20.25145055,168.83,168.74,5.92627711]
[1747607600437,20.25145055,168.84,168.74,7.1111778]
[1747607600742,81.3166728,168.85,168.74,21.92687058]
[1747607600934,75.39425055,168.85,168.74,47.92687058]
[1747607601135,54.6235,168.85,168.74,47.92687058]
[1747607601316,20.25145055,168.84,168.74,47.92687058]
[1747607601515,20.25145055,168.83,168.74,33.1111778]
[1747607601717,20.25145055,168.83,168.74,31.92627711]
[1747607601718,20.25145055,168.82,168.74,31.92627711]
[1747607602210,20.77075055,168.83,168.74,31.92627711]
[1747607603339,54.6235,168.85,168.75,1.18494514]
[1747607603520,48.2,168.85,168.75,1.18494514]
[1747607603921,22.52099366,168.86,168.77,26.0]
[1747607604122,20.25145055,168.85,168.77,26.0]
[1747607604431,2.26954311,168.86,168.75,27.18494514]
[1747607604631,22.52099366,168.86,168.75,27.18494514]
[1747607604942,28.44310377,168.86,168.75,27.18494514]
[1747607605240,28.44310377,168.86,168.74,20.74196989]
[1747607605241,20.25145055,168.82,168.74,5.92627711]
[1747607605548,20.25145055,168.83,168.74,5.92627711]
[1747607605718,20.25145055,168.84,168.74,5.92627711]
[1747607606833,48.2,168.85,168.77,26.0]
[1747607607035,48.2,168.85,168.78,5.92487261]
[1747607607241,2.26954311,168.86,168.78,7.10954945]
[1747607607623,23.04029366,168.86,168.78,20.73705414]
[1747607607821,2.26954311,168.86,168.78,20.73705414]
[1747607609227,2.26954311,168.86,168.79,1.18451443]
[1747607609417,2.26954311,168.86,168.78,20.73705414]
[1747607610046,2.26954311,168.86,168.78,21.92166381]
[1747607610621,2.26954311,168.86,168.78,20.73705414]
[1747607611324,2.26954311,168.86,168.78,21.92162015]
[1747607611521,2.26954311,168.86,168.79,18.64964886]
[1747607611746,2.26954311,168.86,168.8,27.18433131]
[1747607611945,2.26954311,168.86,168.82,26.0]
[1747607612145,2.26954311,168.86,168.84,18.64964886]
[1747607612351,2.26954311,168.86,168.85,1.18403292]
[1747607613254,2.26954311,168.86,168.85,5.92241634]
[1747607615241,2.26954311,168.86,168.84,24.57241597]
[1747607615439,2.26954311,168.86,168.85,1.18406424]
[1747607615642,2.26954311,168.86,168.85,4.0842353]
[1747607615841,2.26954311,168.86,168.85,1.18406424]
[1747607616037,2.26954311,168.86,168.84,5.92276711]
[1747607616242,2.26954311,168.86,168.84,7.10697473]
[1747607616577,2.26954311,168.86,168.85,44.64964886]
[1747607616935,2.26954311,168.86,168.85,26.0]
[1747607617359,2.26954311,168.86,168.85,53.58003071]
[1747607617541,2.26954311,168.86,168.85,34.93038185]
[1747607617737,2.26954311,168.86,168.8,5.92417061]
[1747607618049,2.26954311,168.86,168.82,26.0]
[1747607618260,2.26954311,168.86,168.83,1.18426746]
[1747607618564,2.26954311,168.86,168.84,18.64964886]
[1747607618727,2.26954311,168.86,168.85,1.18389223]
[1747607618929,7.8405,168.97,168.85,1.18389223]
[1747607619128,28.09195055,168.97,168.88,26.0]
[1747607619341,20.77075055,168.96,168.86,31.92206561]
[1747607619669,6.43680991,168.99,168.9,26.0]
[1747607619864,27.16861251,169.0,168.9,26.0]
[1747607620158,27.16861251,169.0,168.91,1.18377561]
[1747607620331,1.0,169.0,168.91,1.18377561]
[1747607620645,1.0,169.0,168.95,26.0]
[1747607620846,21.25145055,169.0,168.95,26.0]
[1747607621145,6.91723336,169.0,168.93,26.0]
[1747607621455,20.25145055,168.99,168.93,26.0]
[1747607621630,21.25145055,169.0,168.93,5.91959755]
[1747607621829,1.0,169.0,168.93,5.91959755]
[1747607623359,1.0,169.0,168.91,60.63398603]
[1747607623360,21.25145055,169.0,168.92,5.91996211]
[1747607623667,1.0,169.0,168.92,5.91996211]
[1747607624564,20.25145055,168.98,168.91,26.0]
[1747607624871,20.25145055,168.99,168.91,26.0]
[1747607625048,20.25145055,168.99,168.89,5.92101367]
[1747607625259,20.25145055,168.97,168.9,26.0]
[1747607625561,0.5193,168.96,168.87,5.92139616]
[1747607625762,20.25145055,168.92,168.85,5.92241634]
[1747607625966,20.25145055,168.92,168.85,31.92241634]
[1747607626655,21.23430337,168.96,168.85,31.92241634]
[1747607626967,20.25145055,168.92,168.85,31.92241634]
[1747607627341,5.92011774,168.92,168.85,26.0]
[1747607627563,26.17156829,168.92,168.85,26.0]
[1747607627755,26.17111315,168.93,168.86,5.92206561]
[1747607627956,20.25145055,168.92,168.84,5.9224665]
[1747607628140,20.25145055,168.91,168.84,5.9224665]
[1747607628345,20.25145055,168.91,168.84,31.9224665]
[1747607628543,1.5474,168.93,168.85,1.18437238]
[1747607628965,32.72598614,168.94,168.85,1.18437238]
[1747607629483,32.72598614,168.94,168.86,5.92206561]
[1747607629652,20.25145055,168.93,168.86,5.92206561]
[1747607630041,0.5193,168.93,168.86,5.92206561]
[1747607630351,20.25145055,168.93,168.86,5.92206561]
[1747607630557,6.43873559,168.94,168.86,5.92206561]
[1747607630770,20.25145055,168.93,168.86,5.92206561]
[1747607631076,0.5193,168.96,168.89,26.0]
[1747607631241,1.0,169.0,168.93,26.0]
[1747607631445,1.0,169.0,168.94,20.71741446]
[1747607631984,1.0,169.0,168.95,1.18334662]
[1747607632653,1.0,169.0,168.96,31.9185606]
[1747607632972,1.0,169.0,168.97,1.183308]
[1747607633562,20.25145055,169.18,169.04,26.0]
[1747607633747,20.25145055,169.13,169.04,44.64964886]
[1747607633942,20.25145055,169.12,169.04,26.0]
[1747607634256,6.5143,169.13,169.03,18.64964886]
[1747607634457,20.25145055,169.12,169.03,18.64964886]
[1747607634772,6.43232812,169.12,169.02,26.0]
[1747607634956,0.5193,169.12,169.02,26.0]
[1747607635351,20.25145055,169.09,169.02,26.0]
[1747607635551,0.5193,169.12,169.02,26.0]
[1747607635966,20.25145055,169.08,169.02,26.0]
[1747607636166,5.91331086,169.11,169.02,26.0]
[1747607636473,20.25145055,169.07,169.02,26.0]
[1747607636664,20.25145055,169.08,169.02,26.0]
[1747607636866,0.5193,169.1,169.02,26.0]
[1747607637069,20.25145055,169.09,169.02,31.91634048]
[1747607637367,20.25145055,169.11,169.02,31.91634048]
[1747607637551,20.25145055,169.1,169.02,31.91634048]
[1747607638394,20.25145055,169.07,168.98,6.264]
[1747607638565,20.25145055,169.06,168.97,5.91821033]
[1747607639066,21.21833601,169.09,168.97,5.91821033]
[1747607639067,20.25145055,169.05,168.97,31.91821033]
[1747607639274,21.21833601,169.09,168.98,1.18328265]
[1747607639275,20.25145055,169.07,168.98,1.18328265]
[1747607639656,20.25145055,169.06,168.98,26.0]
[1747607639956,26.16721013,169.04,168.96,5.91851872]
[1747607640168,5.91575958,169.04,168.94,6.5181]
[1747607640373,26.16721013,169.04,168.95,1.183433]
[1747607640571,5.91575958,169.04,168.95,1.183433]
[1747607640867,5.91575958,169.04,168.92,5.91996211]
[1747607640868,20.25145055,169.0,168.92,5.91996211]
[1747607641069,20.25145055,168.98,168.89,1.1833855]
[1747607641272,0.5193,169.01,168.9,2.81]
[1747607641488,20.25145055,168.96,168.9,2.81]
[1747607641671,0.5193,169.01,168.87,1.18396495]
[1747607641867,20.25145055,168.98,168.87,27.18396495]
[1747607642077,5.91790137,168.98,168.88,5.92136428]
[1747607642267,5.91790137,168.98,168.89,3.99374386]
[1747607642589,26.16935192,168.98,168.89,3.99374386]
[1747607642816,20.25145055,168.95,168.89,2.81]
[1747607642966,20.25145055,168.94,168.89,2.81]
[1747607643294,20.25145055,168.92,168.89,2.81]
[1747607643590,20.25145055,168.92,168.85,5.92237062]
[1747607643788,20.25145055,168.92,168.83,5.92311792]
[1747607643974,5.91926127,168.94,168.85,5.92241634]
[1747607644160,5.91926127,168.94,168.84,26.0]
[1747607644357,20.25145055,168.92,168.83,5.92311792]
[1747607644764,20.25145055,168.87,168.81,5.92381967]
[1747607644995,20.25145055,168.86,168.8,5.9241532]
[1747607645176,0.5193,168.91,168.79,17.24600724]
[1747607645365,6.5513,168.92,168.82,26.0]
[1747607645572,6.5513,168.92,168.83,1.18426376]
[1747607645776,20.25145055,168.9,168.82,26.0]
[1747607645989,26.1727824,168.89,168.82,26.0]
[1747607646163,20.25145055,168.89,168.82,31.92334999]
[1747607646366,20.25145055,168.88,168.8,31.92416748]
[1747607646591,26.17265447,168.89,168.8,31.92416748]
[1747607646994,5.92120392,168.89,168.8,31.92416748]
[1747607647187,20.25145055,168.88,168.8,31.92416748]
[1747607647687,20.25145055,168.88,168.8,5.92416748]
[1747607647886,0.5193,168.89,168.8,5.92416748]
[1747607648092,20.25145055,168.88,168.8,5.92416748]
[1747607648297,20.25145055,168.89,168.8,5.92416748]
[1747607648462,20.25145055,168.87,168.8,5.92416748]
[1747607648670,20.25145055,168.87,168.79,43.246004]
[1747607649169,20.25145055,168.85,168.79,11.32153148]
[1747607649367,20.25145055,168.84,168.79,11.32153148]
[1747607649590,20.25145055,168.85,168.79,11.32153148]
[1747607650091,20.25145055,168.84,168.79,11.32153148]
[1747607650705,6.44200595,168.85,168.79,11.32153148]
[1747607651178,26.1741565,168.85,168.79,11.32153148]
[1747607651377,20.25145055,168.83,168.79,11.32153148]
[1747607651581,20.25145055,168.82,168.79,11.32153148]
[1747607651893,20.25145055,168.82,168.74,31.9259822]
[1747607652094,26.17506782,168.82,168.74,31.9259822]
[1747607652270,0.5193,168.81,168.74,5.9259822]
[1747607652600,20.25145055,168.8,168.71,5.92733092]
[1747607652982,20.25145055,168.79,168.71,5.92733092]
[1747607653499,12.04638094,168.82,168.71,5.92733092]
[1747607653500,20.25145055,168.77,168.71,5.92733092]
[1747607653674,20.25145055,168.79,168.71,5.92733092]
[1747607654072,20.25145055,168.78,168.69,14.81934776]
[1747607654888,20.25145055,168.77,168.69,14.81934776]
[1747607655074,20.25145055,168.75,168.68,5.9283851]
[1747607655275,20.25145055,168.71,168.66,5.92876843]
[1747607655571,33.02,168.72,168.62,3.00536478]
[1747607655775,20.25145055,168.67,168.64,2.81]
[1747607656169,20.25145055,168.68,168.64,2.81]
[1747607656370,20.25145055,168.67,168.64,2.81]
[1747607656901,20.25145055,168.67,168.61,5.93084633]
[1747607658101,20.77075055,168.66,168.56,14.83112349]
[1747607658401,20.25145055,168.64,168.56,14.83112349]
[1747607658711,20.25145055,168.67,168.56,16.01734027]
[1747607658884,20.25145055,168.66,168.56,16.01734027]
[1747607659090,20.25145055,168.65,168.56,14.83112349]
[1747607659397,20.25145055,168.65,168.55,5.93295757]
[1747607659603,20.25145055,168.65,168.56,26.0]
[1747607660309,0.5193,168.69,168.57,5.93225366]
[1747607660503,20.25145055,168.66,168.57,5.93225366]
[1747607660685,20.25145055,168.66,168.57,20.76288781]
[1747607661091,0.5193,168.67,168.57,20.76288781]
[1747607661312,0.5193,168.67,168.6,26.0]
[1747607661498,20.25145055,168.69,168.6,26.0]
[1747607661814,20.25145055,168.68,168.6,26.0]
[1747607662107,20.25145055,168.63,168.57,5.93225366]
[1747607662296,20.25145055,168.62,168.55,5.93295757]
[1747607662495,20.25145055,168.6,168.55,5.93295757]
[1747607662807,0.5193,168.62,168.46,1.18644575]
[1747607662808,20.25145055,168.58,168.46,1.18644575]
[1747607663106,7.8131,168.61,168.49,18.64964886]
[1747607663294,7.8131,168.61,168.5,1.18640646]
[1747607663892,7.8131,168.61,168.51,26.0]
[1747607664094,32.48,168.62,168.51,26.0]
[1747607664299,32.48,168.62,168.52,1.1863711]
[1747607664505,32.48,168.62,168.53,5.93366166]
[1747607664903,0.5193,168.63,168.53,20.76781581]
[1747607665089,20.25145055,168.63,168.53,20.76781581]
[1747607666307,20.77075055,168.62,168.53,20.76781581]
[1747607666632,5.93089866,168.61,168.52,5.93401376]
[1747607666928,20.25145055,168.61,168.52,5.93401376]
[1747607667418,0.5193,168.63,168.52,5.93401376]
[1747607667604,20.25145055,168.62,168.52,5.93401376]
[1747607667917,26.18200947,168.62,168.52,5.93401376]
[1747607668121,26.70178778,168.61,168.52,5.93401376]
[1747607668298,20.77075055,168.61,168.52,5.93401376]
[1747607669422,0.5193,168.61,168.52,5.93401376]
[1747607670006,59.28088198,168.64,168.53,1.18646905]
[1747607670207,33.0993,168.64,168.53,1.18646905]
[1747607670397,32.58,168.64,168.53,1.18646905]
[1747607671120,32.58,168.64,168.55,26.0]
[1747607671305,32.58,168.64,168.55,27.18615276]
[1747607672039,32.58,168.64,168.56,20.7641196]
[1747607672321,33.0993,168.64,168.56,20.7641196]
[1747607673516,32.58,168.64,168.56,20.7641196]
[1747607674108,32.58,168.64,168.56,21.95035974]
[1747607674396,6.5158,168.7,168.6,26.0]
[1747607674598,6.5158,168.7,168.61,1.18586041]
[1747607675027,26.76725055,168.7,168.61,1.18586041]
[1747607675424,32.69516906,168.7,168.61,1.18586041]
[1747607675631,20.77075055,168.69,168.6,26.0]
[1747607675925,0.5193,168.69,168.6,26.0]
[1747607676129,6.5158,168.7,168.61,7.11676016]
[1747607676425,217.8991,168.71,168.61,21.94387598]
[1747607676609,37.7862,168.74,168.64,26.0]
[1747607676928,20.25145055,168.72,168.64,26.0]
[1747607677131,20.25145055,168.71,168.64,26.0]
[1747607677315,20.25145055,168.72,168.64,26.0]
[1747607677816,20.25145055,168.71,168.64,26.0]
[1747607678317,26.17885544,168.71,168.65,5.92943966]
[1747607678729,0.5193,168.74,168.65,5.92943966]
[1747607678930,20.25145055,168.73,168.65,5.92943966]
[1747607679232,20.77075055,168.72,168.64,26.0]
[1747607679728,20.25145055,168.7,168.62,5.9304946]
[1747607679913,0.5193,168.69,168.62,5.9304946]
[1747607680326,0.5193,168.69,168.6,26.0]
[1747607681330,26.69902102,168.69,168.6,26.0]
[1747607681528,20.25145055,168.68,168.6,26.0]
[1747607681726,26.69902102,168.69,168.6,26.0]
[1747607682434,26.69902102,168.69,168.61,5.93084633]
[1747607682736,6.44757047,168.69,168.61,5.93084633]
[1747607683232,20.77075055,168.71,168.61,5.93084633]
[1747607683621,0.5193,168.71,168.61,20.75796215]
[1747607683807,5.92668973,168.73,168.64,26.0]
[1747607684010,6.44563505,168.74,168.64,26.0]
[1747607684211,27.81530407,168.76,168.64,27.18560842]
[1747607684410,7.56385352,168.76,168.65,31.92943966]
[1747607684635,27.81530407,168.76,168.65,31.92943966]
[1747607684841,0.5193,168.75,168.65,31.92943966]
[1747607685335,7.56385352,168.76,168.65,46.75303882]
[1747607685514,38.1462,168.78,168.67,6.2684]
[1747607685713,12.491252,168.78,168.68,27.18520512]
[1747607686026,20.25145055,168.75,168.66,164.4]
[1747607686215,20.77075055,168.74,168.66,164.4]
[1747607686415,20.25145055,168.73,168.65,5.92943966]
[1747607686612,5.92697961,168.72,168.65,5.92943966]
[1747607686841,20.25145055,168.74,168.65,5.92943966]
[1747607687134,0.5193,168.73,168.65,5.92943966]
[1747607687338,0.5193,168.75,168.65,5.92943966]
[1747607687938,20.77075055,168.75,168.65,5.92943966]
[1747607688642,20.25145055,168.73,168.65,5.92943966]
[1747607688814,0.5193,168.72,168.65,5.92943966]
[1747607689935,5.92733092,168.71,168.65,5.92943966]
[1747607690117,0.5193,168.72,168.65,5.92943966]
[1747607690309,0.5193,168.72,168.64,5.92970472]
[1747607690310,26.69781465,168.72,168.64,5.92970472]
[1747607690514,20.25145055,168.7,168.6,5.9311981]
[1747607690823,20.77075055,168.69,168.6,31.9311981]
[1747607691029,6.5918,168.69,168.6,5.9311981]
[1747607691417,8.0172641,168.72,168.61,26.0]
[1747607691820,28.26871465,168.72,168.61,26.0]
[1747607692243,28.26871465,168.72,168.62,5.9304946]
[1747607693148,8.0172641,168.72,168.65,26.0]
[1747607693318,2.0902,168.72,168.65,26.0]
[1747607693525,5.92666272,168.73,168.65,26.0]
[1747607694343,26.69741327,168.73,168.65,31.92943034]
[1747607694545,20.25145055,168.72,168.65,31.92943034]
[1747607695251,6.44596272,168.73,168.65,31.92943034]
[1747607695427,26.69741327,168.73,168.65,31.92943034]
[1747607695821,6.44596272,168.73,168.65,31.92943034]
[1747607696235,26.69741327,168.73,168.65,31.92943034]
[1747607696435,6.44596272,168.73,168.65,31.92943034]
[1747607696734,26.69741327,168.73,168.65,31.92943034]
[1747607697243,6.0725,168.74,168.65,46.7530295]
[1747607698348,32.76961945,168.74,168.65,31.92943034]
[1747607698524,20.25145055,168.73,168.65,31.92943034]
[1747607698851,32.76961945,168.74,168.65,31.92943034]
[1747607699349,5.92697961,168.72,168.63,7.11562508]
[1747607699536,20.77075055,168.71,168.63,5.92986574]
[1747607699724,20.77075055,168.71,168.62,31.9303753]
[1747607699925,20.25145055,168.68,168.61,5.93074061]
[1747607700226,20.25145055,168.64,168.55,6.3164]
[1747607700423,0.5193,168.67,168.58,26.0]
[1747607701453,6.44836628,168.67,168.59,5.93154991]
[1747607701624,26.69981683,168.67,168.59,5.93154991]
[1747607701948,0.5193,168.67,168.62,26.0]
[1747607702156,21.91695055,168.86,168.72,26.0]
[1747607702459,20.25145055,168.8,168.72,26.0]
[1747607702628,20.25145055,168.77,168.7,26.0]
[1747607702949,20.25145055,168.77,168.64,1.5924]
[1747607702950,0.5193,168.76,168.71,26.0]
[1747607703128,0.5193,168.81,168.71,26.0]
[1747607703328,0.5193,168.81,168.69,26.0]
[1747607703536,20.25145055,168.8,168.7,5.92768227]
[1747607703729,0.5193,168.81,168.71,1.18516233]
[1747607703938,20.25145055,168.81,168.7,20.74688796]
[1747607704135,20.77075055,168.81,168.7,20.74688796]
[1747607704752,20.25145055,168.79,168.7,20.74688796]
[1747607704930,20.25145055,168.8,168.7,20.74688796]
[1747607705340,20.25145055,168.79,168.7,20.74688796]
[1747607705658,0.5193,168.81,168.7,20.74688796]
[1747607705958,20.25145055,168.79,168.7,20.74688796]
[1747607706255,0.5193,168.81,168.7,20.74688796]
[1747607706256,20.25145055,168.8,168.7,20.74688796]
[1747607707230,6.44313419,168.81,168.7,20.74688796]
[1747607707547,20.25145055,168.8,168.7,20.74688796]
[1747607708258,20.25145055,168.77,168.7,5.92768227]
[1747607708448,20.25145055,168.75,168.7,5.92768227]
[1747607708632,20.25145055,168.76,168.7,5.92768227]
[1747607708831,20.77075055,168.77,168.7,5.92768227]
[1747607709439,26.69600849,168.77,168.7,5.92768227]
[1747607710137,20.25145055,168.76,168.7,5.92768227]
[1747607710337,20.25145055,168.73,168.65,5.92943966]
[1747607710544,0.5193,168.75,168.62,5.9304946]
[1747607710545,20.25145055,168.7,168.62,5.9304946]
[1747607710746,20.77075055,168.69,168.62,5.9304946]
[1747607711541,20.77075055,168.69,168.61,31.93084633]
[1747607711736,26.69889373,168.69,168.61,5.93084633]
[1747607712557,20.25145055,168.68,168.61,5.93084633]
[1747607713053,26.69889373,168.69,168.61,5.93084633]
[1747607713434,20.25145055,168.68,168.61,5.93084633]
[1747607713630,26.69948713,168.67,168.61,26.0]
[1747607713829,26.69948713,168.67,168.59,31.93154991]
[1747607715135,26.69948713,168.67,168.55,5.93295757]
[1747607715136,20.25145055,168.65,168.55,5.93295757]
[1747607715336,20.77075055,168.64,168.55,5.93295757]
[1747607715572,20.25145055,168.63,168.55,5.93295757]
[1747607715739,20.25145055,168.63,168.55,31.93295757]
[1747607715944,20.25145055,168.63,168.55,5.93295757]
[1747607716139,20.77075055,168.64,168.55,31.93295757]
[1747607716577,37.07293658,168.67,168.58,26.0]
[1747607716578,1.5642,168.67,168.58,26.0]
[1747607716857,5.92840957,168.68,168.59,26.0]
[1747607717162,6.44770957,168.68,168.59,26.0]
[1747607717367,26.69916012,168.68,168.59,26.0]
[1747607718444,26.69916012,168.68,168.6,5.9311981]
[1747607718663,20.25145055,168.65,168.58,26.0]
[1747607718844,0.5193,168.67,168.58,26.0]
[1747607719045,20.25145055,168.66,168.58,26.0]
[1747607719354,20.74937233,168.68,168.56,26.0]
[1747607719355,0.5193,168.65,168.56,26.0]
[1747607719556,20.77075055,168.65,168.56,26.0]
[1747607720341,6.44883916,168.65,168.56,31.93253761]
[1747607720548,29.3793,168.67,168.57,19.83584064]
[1747607720750,28.86,168.67,168.6,26.0]
[1747607721676,5.92812239,168.69,168.61,2.3]
[1747607721872,26.69887294,168.69,168.61,2.3]
[1747607722080,6.44742239,168.69,168.61,2.3]
[1747607722371,34.76773962,168.7,168.62,5.9304946]
[1747607722673,1.6171,168.75,168.63,44.64964886]
[1747607722868,1.6171,168.75,168.67,18.64964886]
[1747607723069,225.83390621,168.77,168.7,26.0]
[1747607723070,28.74,168.77,168.7,26.0]
[1747607723259,51.44855055,168.8,168.7,27.18515464]
[1747607723571,65.8213639,168.8,168.7,27.18520127]
[1747607723768,29.58,168.8,168.71,18.64964886]